[Event "Swiss Championship U10 2022"]
[Site "Biel"]
[Date "2022.07.21"]
[Round "7.6"]
[White "Rams, Vedha"]
[Black "Sunilkumar, Prathyush"]
[Result "0-1"]
[ECO "B50"]
[WhiteElo "1312"]
[BlackElo "1336"]
[Annotator "NA RC COMBH"]
[PlyCount "78"]
[EventDate "2022.07.18"]
[EventType "swiss"]
[EventCountry "SUI"]
[SourceTitle "playchess.com"]
[Source "ChessBase"]
[SourceQuality "1"]
[TimeControl "5400+30"]

1. e4 {[%emt 0:00:02]} c5 {[%emt 0:01:36]} 2. Nf3 {[%emt 0:00:15]} Nc6 {[%emt 0:01:06]} 3. Bc4 {[%emt 0:00:19]} d6 {[%emt 0:00:39]} 4. h3 {[%emt 0:00:21]} g6 {[%emt 0:00:33]} 5. Ng5 {[%emt 0:00:48]} e6 {[%emt 0:01:09]} 6. d3 {[%emt 0:00:25]} Bg7 {[%emt 0:00:44]} 7. Nc3 {[%emt 0:01:10]} Nf6 {[%emt 0:00:24]} 8. Bf4 {[%emt 0:00:38]} O-O {[%emt 0:01:05]} 9. O-O {[%emt 0:00:05]} a6 {[%emt 0:02:20]} 10. Re1 {[%emt 0:02:14]} b5 {[%emt 0:02:28]} 11. Bb3 {[%emt 0:00:34]} Nh5 {[%emt 0:00:42]} 12. Be3 {[%emt 0:00:52]} b4 {[%emt 0:00:37]} 13. Ne2 {[%emt 0:01:46]} Bxb2 {[%emt 0:00:40]} 14. Rb1 {[%emt 0:01:15]} Bf6 {[%emt 0:00:40]} 15. Qd2 {[%emt 0:00:23]} Nd4 {[%emt 0:01:22]} 16. Ng3 {[%emt 0:03:00]} Nxg3 {[%emt 0:00:51]} 17. fxg3 {[%emt 0:01:12]} Nxb3 {[%emt 0:01:08]} 18. Rxb3 {[%emt 0:02:09]} Bc3 {[%emt 0:03:27]} 19. Rxc3 {[%emt 0:02:09]} bxc3 {[%emt 0:01:31]} 20. Qxc3 {[%emt 0:00:14]} e5 {[%emt 0:00:05]} 21. Rf1 {[%emt 0:00:57]} Be6 {[%emt 0:01:36]} 22. a3 {[%emt 0:01:15]} Ra7 {[%emt 0:01:23]} 23. g4 {[%emt 0:01:11]} Kg7 {[%emt 0:03:57]} 24. Qe1 {[%emt 0:01:39]} h6 {[%emt 0:00:51]} 25. Nxe6+ {[%emt 0:04:49]} fxe6 {[%emt 0:00:27]} 26. Rxf8 {[%emt 0:00:55]} Qxf8 {[%emt 0:01:10]} 27. Qd2 {[%emt 0:01:09]} Qh8 {[%emt 0:00:50]} 28. c3 {[%emt 0:00:25]} h5 {[%emt 0:01:34]} 29. d4 {[%emt 0:01:04]} Qc8 {[%emt 0:02:05]} 30. gxh5 {[%emt 0:01:37]} Qe8 {[%emt 0:00:15]} 31. dxe5 {[%emt 0:00:38]} dxe5 {[%emt 0:01:15]} 32. Bxc5 {[%emt 0:00:55]} Rd7 {[%emt 0:00:08]} 33. Qe2 {[%emt 0:00:37]} gxh5 {[%emt 0:01:42]} 34. Qxa6 {[%emt 0:01:14]} Qf7 {[%emt 0:00:55]} 35. Bd6 {[%emt 0:01:58]} Qf4 {[%emt 0:04:12]} 36. Qc6 {[%emt 0:06:29]} Qc1+ {[%emt 0:01:39]} 37. Kh2 {[%emt 0:00:44]} Qf4+ {[%emt 0:00:11]} 38. Kg1 {[%emt 0:00:45]} Qe3+ {[%emt 0:00:18]} 39. Kh2 {[%emt 0:00:41]} Qf4+ {[%emt 0:00:10]} 0-1

[Event "Swiss Championship U10 2022"]
[Site "Biel"]
[Date "2022.07.21"]
[Round "7.7"]
[White "Lerner, David B"]
[Black "Gregor, Elena"]
[Result "1-0"]
[ECO "B30"]
[WhiteElo "2125"]
[BlackElo "1258"]
[Annotator "NA RC"]
[PlyCount "63"]
[EventDate "2022.07.18"]
[EventType "swiss"]
[EventCountry "SUI"]
[SourceTitle "playchess.com"]
[Source "ChessBase"]
[SourceQuality "1"]
[TimeControl "5400+30"]

1. e4 {[%emt 0:00:14]} c5 {[%emt 0:00:03]} 2. Nf3 {[%emt 0:00:07]} Nc6 {[%emt 0:00:43]} 3. Bc4 {[%emt 0:00:32]} e5 {[%emt 0:00:18]} 4. Nc3 {[%emt 0:00:20]} Nf6 {[%emt 0:03:53]} 5. Ng5 {[%emt 0:05:58]} d5 {[%emt 0:01:45]} 6. exd5 {[%emt 0:02:38]} Na5 {[%emt 0:01:35]} 7. d3 {[%emt 0:01:11]} Nxc4 {[%emt 0:00:13]} 8. dxc4 {[%emt 0:01:04]} Bg4 {[%emt 0:01:11]} 9. f3 {[%emt 0:01:49]} h6 {[%emt 0:03:26]} 10. Nge4 {[%emt 0:02:09]} Nxe4 {[%emt 0:01:10]} 11. Nxe4 {[%emt 0:02:57]} Bf5 {[%emt 0:01:36]} 12. Qe2 {[%emt 0:06:17]} Qh4+ {[%emt 0:04:13]} 13. g3 {[%emt 0:02:05]} Qh5 {[%emt 0:02:41]} 14. Be3 {[%emt 0:02:29]} Bxe4 {[%emt 0:00:36]} 15. fxe4 {[%emt 0:00:29]} Qxe2+ {[%emt 0:01:17]} 16. Kxe2 {[%emt 0:00:28]} b6 {[%emt 0:03:43]} 17. Rhf1 {[%emt 0:00:15]} f6 {[%emt 0:01:22]} 18. Rab1 {[%emt 0:00:31]} a5 {[%emt 0:01:16]} 19. a4 {[%emt 0:00:38]} g5 {[%emt 0:00:37]} 20. Rxf6 {[%emt 0:03:22]} Rb8 {[%emt 0:01:52]} 21. Re6+ {[%emt 0:01:44]} Kd7 {[%emt 0:00:52]} 22. Rxe5 {[%emt 0:01:22]} Be7 {[%emt 0:00:30]} 23. Rf1 {[%emt 0:01:33]} Kd6 {[%emt 0:00:47]} 24. Re6+ {[%emt 0:00:14]} Kd7 {[%emt 0:00:18]} 25. Rf7 {[%emt 0:02:30]} Rhe8 {[%emt 0:00:56]} 26. Rxh6 {[%emt 0:01:16]} Kd8 {[%emt 0:03:40]} 27. Rg6 {[%emt 0:00:58]} b5 {[%emt 0:03:06]} 28. cxb5 {[%emt 0:00:59]} c4 {[%emt 0:01:14]} 29. Bxg5 {[%emt 0:00:10]} Bxg5 {[%emt 0:01:07]} 30. Rxg5 {[%emt 0:01:08]} Rc8 {[%emt 0:00:22]} 31. Rgg7 {[%emt 0:02:01]} c3 {[%emt 0:00:50]} 32. Rd7# {[%emt 0:01:11]} 1-0

[Event "Swiss Championship U10 2022"]
[Site "Biel"]
[Date "2022.07.21"]
[Round "7.8"]
[White "Gong, Yansheng"]
[Black "Cavadini, Tommaso"]
[Result "1-0"]
[ECO "B08"]
[WhiteElo "1285"]
[BlackElo "1290"]
[Annotator "NA RC COMBH"]
[PlyCount "87"]
[EventDate "2022.07.18"]
[EventType "swiss"]
[EventCountry "SUI"]
[SourceTitle "playchess.com"]
[Source "ChessBase"]
[SourceQuality "1"]
[TimeControl "5400+30"]

1. e4 {[%emt 0:00:07]} d6 {[%emt 0:00:06]} 2. d4 {[%emt 0:00:12]} Nf6 {[%emt 0:00:16]} 3. Nc3 {[%emt 0:00:31]} g6 {[%emt 0:00:19]} 4. Nf3 {[%emt 0:00:22]} Bg7 {[%emt 0:00:16]} 5. Bc4 {[%emt 0:00:17]} O-O {[%emt 0:00:27]} 6. Bf4 {[%emt 0:00:30]} c6 {[%emt 0:00:27]} 7. a3 {[%emt 0:00:50]} b5 {[%emt 0:00:51]} 8. Ba2 {[%emt 0:00:00]} Qa5 {[%emt 0:01:08]} 9. Qd2 {[%emt 0:00:47]} Bb7 {[%emt 0:01:42]} 10. Bh6 {[%emt 0:00:09]} Nxe4 {[%emt 0:02:54]} 11. Nxe4 {[%emt 0:00:32]} Qxd2+ {[%emt 0:00:14]} 12. Bxd2 {[%emt 0:00:09]} Nd7 {[%emt 0:01:13]} 13. O-O {[%emt 0:00:56]} c5 {[%emt 0:03:17]} 14. d5 {[%emt 0:01:00]} Nb6 {[%emt 0:00:55]} 15. Nc3 {[%emt 0:01:34]} Bxc3 {[%emt 0:00:55]} 16. Bxc3 {[%emt 0:00:17]} Bxd5 {[%emt 0:01:03]} 17. Bxd5 {[%emt 0:00:15]} Nxd5 {[%emt 0:00:11]} 18. Rfe1 {[%emt 0:00:21]} a6 {[%emt 0:01:33]} 19. Rad1 {[%emt 0:00:53]} Nxc3 {[%emt 0:00:51]} 20. bxc3 {[%emt 0:00:46]} Rfe8 {[%emt 0:01:21]} 21. Rd3 {[%emt 0:00:39]} c4 {[%emt 0:01:16]} 22. Rd4 {[%emt 0:00:28]} Rac8 {[%emt 0:01:59]} 23. Ree4 {[%emt 0:01:53]} f5 {[%emt 0:00:39]} 24. Rh4 {[%emt 0:04:08]} Kg7 {[%emt 0:05:33]} 25. Rh3 {[%emt 0:00:00]} h6 {[%emt 0:01:47]} 26. Rd5 {[%emt 0:00:00]} g5 {[%emt 0:02:02]} 27. Rg3 {[%emt 0:02:35]} Kf6 {[%emt 0:07:42]} 28. Kf1 {[%emt 0:01:55]} Rc5 {[%emt 0:02:17]} 29. Rxc5 {[%emt 0:00:49]} dxc5 {[%emt 0:02:27]} 30. Ng1 {[%emt 0:01:20]} Rd8 {[%emt 0:00:00]} 31. Re3 {[%emt 0:00:46]} Rd1+ {[%emt 0:00:00]} 32. Re1 {[%emt 0:01:08]} Rxe1+ {[%emt 0:00:00]} 33. Kxe1 {[%emt 0:00:08]} e5 {[%emt 0:00:00]} 34. Ke2 {[%emt 0:00:27]} e4 {[%emt 0:00:59]} 35. f3 {[%emt 0:00:24]} exf3+ {[%emt 0:00:00]} 36. Nxf3 {[%emt 0:00:14]} f4 {[%emt 0:00:00]} 37. g3 {[%emt 0:00:29]} g4 {[%emt 0:04:52]} 38. Ne1 {[%emt 0:00:42]} Ke5 {[%emt 0:00:00]} 39. gxf4+ {[%emt 0:01:46]} Kxf4 {[%emt 0:00:10]} 40. Ng2+ {[%emt 0:00:00]} Ke4 {[%emt 0:00:08]} 41. Ne3 {[%emt 0:00:00]} h5 {[%emt 0:00:28]} 42. Kf2 {[%emt 0:00:00]} Kf4 {[%emt 0:00:48]} 43. Nd5+ {[%emt 0:00:08]} Ke5 {[%emt 0:00:22]} 44. Nc7 {[%emt 0:02:45]} 1-0